fUSD/lending_fUSD_20251120
["ID","MTS","AMOUNT","RATE_DAILY","PERIOD"]
[394464720,1763606835656,1000.0,0.000173,6]
[394464721,1763606837836,1300.0,0.000174,6]
[394464722,1763606851171,469.15,0.00013699,2]
[394464723,1763606886812,-600.98869632,0.00016018,2]
[394464724,1763606901774,-600.98869628,0.00016047,2]
[394464725,1763606915263,166.66,0.00014649,2]
[394464726,1763606915491,166.66,0.00014958,2]
[394464727,1763606915705,166.66,0.00015266,2]
[394464728,1763606915924,166.66,0.00015575,2]
[394464729,1763606916179,166.66,0.00015883,2]
[394464730,1763606916892,-600.98869628,0.00016076,2]
[394464732,1763606965579,155.08450452,0.00042078,120]
[394464733,1763606984158,300.49434814,0.00016018,2]
[394464734,1763606989169,300.49434814,0.00016049,2]
[394464735,1763606994816,-300.49434814,0.00016079,2]
[394464736,1763606996753,470.93976298,0.00016071,2]
[394464739,1763607031726,-300.49434814,0.0001611,2]
[394464740,1763607031736,-2500.0,0.00016113,2]
[394464741,1763607031745,-300.49434814,0.0001614,2]
[394464742,1763607031755,-250.0,0.00016144,2]
[394464743,1763607031764,-2340.1,0.00016152,2]
[394464744,1763607031773,-2340.1,0.00016152,2]
[394464745,1763607031783,-2340.1,0.00016152,2]
[394464746,1763607031792,-2340.1,0.00016152,2]
[394464747,1763607031802,-2340.1,0.00016152,2]
[394464748,1763607031812,-151.0,0.00016159,2]
[394464749,1763607031822,-300.0,0.00016161,2]
[394464750,1763607031832,-1200.0,0.00016161,2]
[394464751,1763607031842,-260568.89310572,0.00016162,2]
[394464752,1763607031854,-871.03682505,0.00016162,2]
[394464753,1763607031865,-929.96297791,0.00016162,2]
[394464781,1763607037684,-369.56369205,0.00016161,2]
[394464782,1763607037694,-213.64141058,0.00016161,2]
[394464783,1763607037704,-171.33237478,0.00016161,2]
[394464784,1763607037714,-497630.10709132,0.00016162,2]
[394464785,1763607037723,-300.49434814,0.00016171,2]
[394464786,1763607037734,-1340.734,0.00016172,2]
[394464787,1763607037747,-300.0,0.00016172,2]
[394464788,1763607037758,-205.0,0.00016172,2]
[394464789,1763607037768,-10004.48547167,0.00016173,2]
[394464790,1763607037779,-15573.26416833,0.00016173,2]
[394464791,1763607037789,-166.66,0.00016191,2]
[394464792,1763607037799,-150.0,0.000162,2]
[394464793,1763607037809,-150.0,0.000162,2]
[394464794,1763607037819,-150.0,0.000162,2]
[394464795,1763607037828,-150.0,0.000162,2]
[394464796,1763607037839,-150.0,0.000162,2]
[394464797,1763607037849,-152.75012698,0.000162,2]
[394464798,1763607037859,-150.0,0.000162,2]
[394464799,1763607037869,-150.0,0.000162,2]
[394464800,1763607037878,-150.0,0.000162,2]
[394464801,1763607037888,-151.0,0.00016262,2]
[394464802,1763607037898,-151.0,0.00016262,2]
[394464804,1763607037907,-523.90531621,0.00016271,2]
[394464805,1763607037916,-500.0,0.00016271,2]
[394464806,1763607037926,-500.0,0.00016271,2]
[394464807,1763607037935,-510.54022934,0.00016271,2]
[394464808,1763607037945,-504.74937913,0.00016271,2]
[394464809,1763607037954,-500.0,0.00016271,2]
[394464810,1763607037963,-500.0,0.00016271,2]
[394464811,1763607037972,-500.0,0.00016271,2]
[394464812,1763607037982,-500.0,0.00016271,2]
[394464813,1763607037994,-500.0,0.00016271,2]
[394464814,1763607038004,-472.19370137,0.00016271,2]
[394464816,1763607038014,-500.0,0.00016271,2]
[394464818,1763607038024,-500.0,0.00016271,2]
[394464820,1763607038034,-500.0,0.00016271,2]
[394464821,1763607038043,-974.04,0.00016271,2]
[394464822,1763607038053,-974.04,0.00016271,2]
[394464823,1763607038063,-974.04,0.00016271,2]
[394464824,1763607038072,-500.0,0.00016271,2]
[394464825,1763607038082,-500.0,0.00016271,2]
[394464826,1763607038091,-517.04291667,0.00016271,2]
[394464827,1763607038101,-500.0,0.00016271,2]
[394464828,1763607038111,-578.22395997,0.00016271,2]
[394464829,1763607038120,-500.0,0.00016271,2]
[394464830,1763607038131,-500.0,0.00016271,2]
[394464831,1763607038140,-630.22923596,0.00016271,2]
[394464832,1763607038150,-500.0,0.00016271,2]
[394464833,1763607038161,-500.0,0.00016271,2]
[394464834,1763607038171,-500.0,0.00016271,2]
[394464835,1763607038181,-500.0,0.00016271,2]
[394464836,1763607038191,-577.83332747,0.00016271,2]
[394464837,1763607038201,-500.0,0.00016271,2]
[394464838,1763607038210,-298.11613733,0.00016271,2]
[394464839,1763607038220,-539.04081125,0.00016271,2]
[394464840,1763607038235,-500.0,0.00016273,2]
[394464841,1763607038248,-500.0,0.00016273,2]
[394464842,1763607038257,-435.73020833,0.00016273,2]
[394464843,1763607038268,-641.36723282,0.00016273,2]
[394464844,1763607038277,-501.04689387,0.00016273,2]
[394464845,1763607038286,-503.29011915,0.00016273,2]
[394464846,1763607038295,-500.0,0.00016273,2]
[394464847,1763607038305,-500.0,0.00016273,2]
[394464848,1763607038314,-500.0,0.00016273,2]
[394464849,1763607038323,-500.0,0.00016273,2]
[394464850,1763607038333,-500.0,0.00016273,2]
[394464851,1763607038342,-470.93976298,0.00016332,2]
[394464852,1763607038352,-500.0,0.00016353,2]
[394464853,1763607038361,-160.28500137,0.00016353,2]
[394464854,1763607038371,-500.0,0.00016353,2]
[394464855,1763607038380,-500.0,0.00016353,2]
[394464856,1763607038390,-500.0,0.00016353,2]
[394464857,1763607038399,-1739.54,0.00016353,2]
[394464858,1763607038409,-500.0,0.00016353,2]
[394464859,1763607038418,-500.0,0.00016353,2]
[394464860,1763607038427,-500.0,0.00016353,2]
[394464861,1763607038437,-500.0,0.00016353,2]
[394464862,1763607038447,-501.59085028,0.00016353,2]
[394464863,1763607038456,-507.97085936,0.00016353,2]
[394464864,1763607038466,-10004.48547167,0.00016365,2]
[394464865,1763607038476,-15573.2641683,0.00016365,2]
[394464866,1763607038485,-500.0,0.00016438,2]
[394464867,1763607038496,-500.0,0.00016438,2]
[394464868,1763607038506,-500.0,0.00016438,2]
[394464869,1763607038516,-2291.55,0.00016438,2]
[394464870,1763607038525,-150.0,0.00016457,2]
[394464871,1763607038535,-150.0,0.000165,2]
[394464872,1763607038544,-382.0,0.0001652,2]
[394464873,1763607038554,-10004.48547167,0.00016557,2]
[394464874,1763607038563,-15573.2641683,0.00016557,2]
[394464875,1763607038572,-33339.3297,0.00016569,2]
[394464876,1763607038582,-3014.5034,0.00016569,2]
[394464877,1763607038593,-1000.0,0.00016569,2]
[394464878,1763607038602,-500.0,0.00016569,2]
[394464879,1763607038612,-1000.0,0.00016573,2]
[394464880,1763607038621,-1000.0,0.00016573,2]
[394464881,1763607038631,-271.774,0.00016573,2]
[394464882,1763607038640,-382.0,0.00016581,2]
[394464883,1763607038649,-470.93976298,0.00016594,2]
[394464884,1763607038659,-178.38,0.00016609,2]
[394464885,1763607038670,-1739.54,0.00016627,2]
[394464886,1763607038680,-382.0,0.00016639,2]
[394464887,1763607038689,-150.0,0.0001665,2]
[394464888,1763607038699,-150.0,0.0001665,2]
[394464889,1763607038709,-500.0,0.00016668,2]
[394464890,1763607038718,-500.0,0.00016668,2]
[394464891,1763607038728,-382.0,0.00016711,2]
[394464892,1763607038738,-150.0,0.00016714,2]
[394464893,1763607038747,-500.0,0.00016748,2]
[394464894,1763607038757,-10004.48547167,0.00016749,2]
[394464895,1763607038767,-15573.2641683,0.00016749,2]
[394464896,1763607038776,-382.0,0.00016785,2]
[394464897,1763607038785,-150.0,0.000168,2]
[394464898,1763607038795,-150.0,0.000168,2]
[394464899,1763607038804,-150.0,0.000168,2]
[394464900,1763607038814,-150.0,0.000168,2]
[394464901,1763607038824,-1000.0,0.00016821,2]
[394464902,1763607038833,-1005.36348195,0.00016821,2]
[394464903,1763607038842,-370.772333,0.00016821,2]
[394464904,1763607038852,-507.69299503,0.00016821,2]
[394464905,1763607038862,-470.93976298,0.00016855,2]
[394464906,1763607038871,-500.0,0.00016863,2]
[394464907,1763607038881,-500.0,0.00016863,2]
[394464908,1763607038890,-974.04,0.00016863,2]
[394464909,1763607038899,-500.0,0.00016863,2]
[394464910,1763607038909,-51289.90457404,0.00016864,2]
[394464911,1763607038919,-1588.69884104,0.00016872,2]
[394464912,1763607038928,-151.0,0.00016894,2]
[394464913,1763607038938,-382.0,0.000169,2]
[394464914,1763607038947,-1739.54,0.00016901,2]
[394464915,1763607038956,-10004.48547167,0.00016941,2]
[394464916,1763607038965,-15573.2641683,0.00016941,2]
[394464917,1763607038974,-150.0,0.00016971,2]
[394464918,1763607038984,-382.0,0.00016981,2]
[394464919,1763607038995,-21263.5,0.00016986,2]
[394464920,1763607039005,-168.0,0.00016999,2]
[394464921,1763607039015,-250.0,0.00017,2]
[394464922,1763607039024,-4783.0,0.00017015,2]
[394464923,1763607039033,-1588.69884103,0.00017043,2]
[394464924,1763607039043,-561.0,0.00017087,2]
[394464925,1763607039053,-150.0,0.000171,2]
[394464926,1763607039063,-150.0,0.000171,2]
[394464927,1763607039072,-150.0,0.000171,2]
[394464928,1763607039081,-470.93976298,0.00017116,2]
[394464929,1763607039091,-10004.48547167,0.00017132,2]
[394464930,1763607039100,-15573.2641683,0.00017132,2]
[394464931,1763607039280,-168.0,0.00017168,2]
[394464932,1763607039290,-1739.54,0.00017175,2]
[394464933,1763607039300,-168.0,0.00017188,2]
[394464934,1763607039309,-561.0,0.00017209,2]
[394464935,1763607039318,-1588.69884103,0.00017215,2]
[394464936,1763607039327,-184.92,0.00017219,2]
[394464937,1763607039337,-150.0,0.00017229,2]
[394464938,1763607039347,-10004.48547167,0.00017324,2]
[394464939,1763607039357,-15573.2641683,0.00017324,2]
[394464940,1763607039367,-168.0,0.00017363,2]
[394464941,1763607039376,-168.0,0.00017363,2]
[394464942,1763607039387,-1500.0,0.00017368,2]
[394464943,1763607039397,-470.93976298,0.00017377,2]
[394464944,1763607039408,-1588.69884103,0.00017386,2]
[394464945,1763607039417,-150.0,0.000174,2]
[394464946,1763607039427,-150.0,0.000174,2]
[394464947,1763607039436,-150.0,0.000174,2]
[394464948,1763607039445,-150.0,0.000174,2]
[394464949,1763607039454,-168.0,0.00017414,2]
[394464950,1763607039464,-561.0,0.00017446,2]
[394464951,1763607039473,-1739.54,0.00017449,2]
[394464952,1763607039482,-604.30481114,0.00017468,2]
[394464953,1763607039493,-12426.30172807,0.0001748,2]
[394464954,1763607039502,-178.38,0.00017483,2]
[394464955,1763607039512,-150.0,0.00017486,2]
[394464956,1763607039521,-1700.0,0.000175,6]
[394464957,1763607039531,-10004.48547167,0.00017516,2]
[394464958,1763607039540,-15573.2641683,0.00017516,2]
[394464959,1763607039549,-169.55,0.00017534,2]
[394464960,1763607039559,-169.55,0.00017534,2]
[394464961,1763607039568,-550.51,0.00017534,2]
[394464962,1763607039578,-550.51,0.00017534,2]
[394464963,1763607039592,-550.51,0.00017534,2]
[394464964,1763607039601,-550.51,0.00017534,2]
[394464965,1763607039610,-169.55,0.00017534,2]
[394464966,1763607039620,-550.51,0.00017534,2]
[394464967,1763607039630,-169.55,0.00017534,2]
[394464968,1763607039639,-150.0,0.0001755,2]
[394464969,1763607039648,-150.0,0.0001755,2]
[394464970,1763607039658,-1588.69884103,0.00017557,2]
[394464971,1763607039668,-561.0,0.00017558,2]
[394464972,1763607039677,-609.784,0.00017595,2]
[394464973,1763607039686,-575.0,0.00017595,2]
[394464974,1763607039695,-1319.0,0.00017595,2]
[394464975,1763607039704,-3452.745,0.00017595,2]
[394464976,1763607039713,-910.627,0.00017595,2]
[394464977,1763607039722,-1198.197,0.00017595,2]
[394464978,1763607039731,-822.0,0.00017595,2]
[394464979,1763607039742,-1600.0,0.00017595,2]
[394464980,1763607039751,-1256.0,0.00017595,2]
[394464981,1763607039760,-799.021,0.00017595,2]
[394464982,1763607039769,-708.819,0.00017595,2]
[394464983,1763607039778,-150.0,0.00017595,2]
[394464984,1763607039788,-561.0,0.00017595,2]
[394464985,1763607039797,-300.0,0.000176,6]
[394464986,1763607039806,-470.93976298,0.00017639,2]
[394464987,1763607039816,-500.0,0.0001766,2]
[394464988,1763607039825,-6607.82647438,0.00017661,2]
[394464989,1763607039834,-420.0,0.00017666,2]
[394464990,1763607039844,-420.0,0.00017678,2]
[394464991,1763607039853,-150.0,0.000177,2]
[394464992,1763607039862,-300.0,0.000177,6]
[394464993,1763607039871,-10004.48547167,0.00017708,2]
[394464994,1763607039881,-15573.2641683,0.00017708,2]
[394464995,1763607039890,-300.0,0.00017715,2]
[394464996,1763607039899,-300.0,0.00017715,2]
[394464997,1763607039909,-250.0,0.00017719,2]
[394464998,1763607039919,-150.12675746,0.00017719,2]
[394464999,1763607039927,-2500.0,0.00017719,2]
[394465000,1763607039937,-300.0,0.00017721,2]
[394465001,1763607039946,-300.0,0.00017721,2]
[394465002,1763607039955,-1739.54,0.00017723,2]
[394465003,1763607039965,-2690.64356047,0.00017724,4]
[394465004,1763607039975,-364.95016721,0.00017724,2]
[394465005,1763607039983,-1588.69884103,0.00017729,2]
[394465006,1763607039995,-250.0,0.00017729,2]
[394465007,1763607040005,-193.6806915,0.00017729,2]
[394465008,1763607040014,-150.0,0.00017743,2]
[394465009,1763607040023,-222.41932101,0.00017749,2]
[394465010,1763607040033,-1680.0,0.00017755,2]
[394465011,1763607040042,-1098.2077208,0.00017777,2]
[394465012,1763607040051,-1011.0,0.000178,2]
[394465013,1763607040061,-300.0,0.000178,6]
[394465014,1763607040070,-494.85303,0.0001782,2]
[394465015,1763607040080,-168.0,0.00017846,2]
[394465016,1763607040089,-1820.68505313,0.00017852,2]
[394465017,1763607040098,-200.0,0.00017855,2]
[394465018,1763607040107,-200.0,0.00017856,2]
[394465019,1763607040116,-500.0,0.00017862,2]
[394465020,1763607040126,-500.0,0.00017862,2]
[394465021,1763607040135,-974.04,0.00017862,2]
[394465022,1763607040145,-500.0,0.00017862,2]
[394465023,1763607040154,-159946.32508833,0.00017862,2]
[394465024,1763607040164,-501.05412908,0.00017873,2]
[394465025,1763607040173,-561.0,0.00017873,2]
[394465027,1763607040182,-25000.0,0.00017882,3]
[394465028,1763607040192,-500.0,0.0001789,2]
[394465029,1763607040201,-25000.0,0.00017891,3]
[394465030,1763607040211,-170.33937986,0.000179,2]
[394465031,1763607040221,-25000.0,0.000179,3]
[394465032,1763607040230,-25000.0,0.000179,3]
[394465033,1763607040240,-10004.48547167,0.000179,2]
[394465034,1763607040249,-172.95843942,0.000179,2]
[394465035,1763607040258,-300.0,0.000179,6]
[394465036,1763607040267,-1588.69884103,0.000179,2]
[394465037,1763607040276,-179.96414648,0.000179,3]
[394465038,1763607040285,-500.37989577,0.000179,2]
[394465039,1763607040295,-27793.82354216,0.000179,2]
[394465040,1763607040304,-2132.50628358,0.000179,2]
[394465041,1763607040315,-470.93976298,0.000179,2]
[394465042,1763607040324,-15573.2641683,0.000179,2]
[394465043,1763607040334,-2000.0,0.00017916,2]
[394465044,1763607040343,-494.85304,0.0001793,2]
[394465045,1763607040352,-168.0,0.00017932,2]
[394465046,1763607040361,-500.0,0.00017973,2]
[394465047,1763607040370,-500.0,0.00017973,2]
[394465048,1763607040379,-500.0,0.00017973,2]
[394465049,1763607040388,-500.47789219,0.00017973,2]
[394465050,1763607040397,-500.0,0.00017973,2]
[394465051,1763607040406,-161.60192736,0.00017973,2]
[394465052,1763607040415,-500.0,0.00017973,2]
[394465053,1763607040424,-500.0,0.00017973,2]
[394465054,1763607040434,-500.0,0.00017973,2]
[394465055,1763607040443,-316.17285237,0.00017973,2]
[394465056,1763607040454,-500.0,0.00017973,2]
[394465057,1763607040464,-500.0,0.00017973,2]
[394465058,1763607040474,-160.73608923,0.00017973,2]
[394465059,1763607040484,-500.0,0.00017973,2]
[394465060,1763607040496,-501.23436494,0.00017973,2]
[394465061,1763607040507,-501.20084487,0.00017973,2]
[394465062,1763607040518,-297.20176291,0.00017973,2]
[394465063,1763607040529,-500.0,0.00017973,2]
[394465064,1763607040539,-500.0,0.00017973,2]
[394465065,1763607040548,-500.0,0.00017973,2]
[394465066,1763607040557,-500.0,0.00017973,2]
[394465067,1763607040566,-500.0,0.00017973,2]
[394465068,1763607040575,-500.0,0.00017973,2]
[394465069,1763607040585,-500.0,0.00017973,2]
[394465070,1763607040597,-503.86976296,0.00017973,2]
[394465071,1763607040606,-500.0,0.00017973,2]
[394465072,1763607040615,-501.27362339,0.00017973,2]
[394465073,1763607040624,-181.63155506,0.00017973,2]
[394465074,1763607040633,-500.0,0.00017982,2]
[394465075,1763607040644,-1820.68505313,0.0001799,2]
[394465076,1763607040653,-1820.68505313,0.0001799,2]
[394465077,1763607040662,-1739.54,0.00017997,2]
[394465078,1763607040672,-500.0,0.00017998,2]
[394465079,1763607040681,-500.0,0.00017998,2]
[394465080,1763607040690,-974.04,0.00017998,2]
[394465081,1763607040700,-500.0,0.00017998,2]
[394465082,1763607040709,-500.0,0.00017999,2]
[394465083,1763607040718,-500.0,0.00017999,2]
[394465084,1763607040727,-500.0,0.00017999,2]
[394465085,1763607040737,-630.79318049,0.00017999,2]
[394465086,1763607040748,-257.73915746,0.00017999,2]
[394465087,1763607040757,-974.04,0.00017999,2]
[394465088,1763607040766,-974.04,0.00017999,2]
[394465089,1763607040775,-974.04,0.00017999,2]
[394465090,1763607040785,-974.04,0.00017999,2]
[394465091,1763607040794,-351.02217685,0.00017999,2]
[394465092,1763607040803,-974.04,0.00017999,2]
[394465093,1763607040813,-974.04,0.00017999,2]
[394465094,1763607040822,-974.04,0.00017999,2]
[394465095,1763607040831,-974.04,0.00017999,2]
[394465096,1763607040840,-974.04,0.00017999,2]
[394465097,1763607040849,-974.04,0.00017999,2]
[394465098,1763607040858,-974.04,0.00017999,2]
[394465099,1763607040868,-974.04,0.00017999,2]
[394465100,1763607040877,-974.04,0.00017999,2]
[394465101,1763607040886,-974.04,0.00017999,2]
[394465102,1763607040896,-974.04,0.00017999,2]
[394465103,1763607040905,-974.04,0.00017999,2]
[394465104,1763607040914,-974.04,0.00017999,2]
[394465105,1763607040924,-974.25299022,0.00017999,2]
[394465106,1763607040934,-300.0,0.00017999,2]
[394465107,1763607040943,-500.0,0.00017999,2]
[394465108,1763607040953,-500.0,0.00017999,2]
[394465109,1763607040962,-500.0,0.00017999,2]
[394465110,1763607040971,-500.0,0.00017999,2]
[394465111,1763607040980,-500.0,0.00017999,2]
[394465112,1763607040989,-500.0,0.00017999,2]
[394465113,1763607040999,-500.0,0.00017999,2]
[394465114,1763607041008,-500.0,0.00017999,2]
[394465115,1763607041018,-500.0,0.00017999,2]
[394465116,1763607041027,-192.98861865,0.00017999,2]
[394465117,1763607041037,-500.0,0.00017999,2]
[394465118,1763607041046,-500.0,0.00017999,2]
[394465119,1763607041055,-500.0,0.00017999,2]
[394465120,1763607041065,-500.0,0.00017999,2]
[394465121,1763607041074,-630.01716056,0.00017999,2]
[394465122,1763607041084,-300.0,0.00017999,2]
[394465123,1763607041093,-157.69374704,0.00018,2]
[394465124,1763607041102,-163.00151995,0.00018,2]
[394465125,1763607041112,-160.99721295,0.00018,2]
[394465126,1763607041121,-165.78798586,0.00018,2]
[394465127,1763607041130,-158.71690319,0.00018,2]
[394465128,1763607041139,-159.5094625,0.00018,2]
[394465129,1763607041148,-155.40496645,0.00018,2]
[394465130,1763607041157,-157.52172287,0.00018,2]
[394465131,1763607041166,-3919578.06182913,0.00018,2]
[394465132,1763607041182,-11477.80289537,0.00018,2]
[394465133,1763607041196,-33440.56212677,0.00018,2]
[394465134,1763607041207,-9160.5,0.00018,2]
[394465135,1763607041224,-1605.0,0.00017595,2]
[394465136,1763607041233,-9073.14737334,0.00018,2]
[394465137,1763607041244,-4600.0,0.00018,2]
[394465138,1763607041343,-152.64,0.00017212,2]
[394465139,1763607041352,-216.89755253,0.000179,2]
[394465140,1763607041361,-17416.38706457,0.00018,2]
[394465141,1763607041379,-2542.52713716,0.00018,2]
[394465142,1763607041391,-2291.15,0.00018,2]
[394465143,1763607041402,-4850.87,0.00018,2]
[394465144,1763607041417,-2776.79889938,0.00018,2]
[394465145,1763607041428,-1067.433027,0.00018,2]
[394465146,1763607041439,-1709.48644494,0.00018,2]
[394465158,1763607046259,-314.52381947,0.00016161,2]
[394465159,1763607046269,-500.0,0.00016161,2]
[394465160,1763607046278,-425.87249255,0.00016161,2]
[394465172,1763607174587,-300.0,0.0001616,2]
[394465173,1763607174609,-300.0,0.0001616,2]
[394465174,1763607174633,-346.0695808,0.0001616,2]
[394465175,1763607174655,-500.0,0.00016271,2]
[394465176,1763607174679,-500.0,0.00016271,2]
[394465177,1763607174704,-500.0,0.00016271,2]
[394465178,1763607174727,-53.9304192,0.00016748,2]
[394465190,1763607402225,150.0,0.00016271,2]
[394465191,1763607433261,152.76310957,0.00042078,30]
[394465194,1763607475040,999.0,0.00016804,3]
[394465196,1763607546837,500.0,0.00042078,120]
[394465197,1763607547072,500.0,0.00042078,120]
[394465198,1763607547303,500.0,0.00042078,120]
[394465199,1763607547537,500.0,0.00042078,120]
[394465200,1763607547823,500.0,0.00042078,120]
[394465201,1763607548079,500.0,0.00042078,120]
[394465202,1763607548326,188.91624129,0.00042078,120]
[394465204,1763607665951,300.0,0.00032,120]
[394465212,1763607738001,738.0,0.00032,120]
[394465238,1763607928605,647.43,0.0002498,120]
[394465264,1763607984903,-163.00151994,0.000162,2]
[394465265,1763607984927,-157.69374705,0.000162,2]
[394465266,1763607984951,-160.99721295,0.000162,2]
[394465267,1763607984975,-158.71690319,0.000162,2]
[394465268,1763607985000,-165.78798586,0.000162,2]
[394465269,1763607985023,-159.5094625,0.000162,2]
[394465270,1763607985047,-157.52172287,0.000162,2]
[394465395,1763608231919,-350.0,0.00016271,2]
[394465396,1763608231929,-500.0,0.00016271,2]
[394465397,1763608231939,-192.34847306,0.00016271,2]
[394465398,1763608231950,-307.65152694,0.00016271,2]
[394465399,1763608231961,-250.0,0.00016308,2]
[394465400,1763608231971,-157.8088648,0.00016345,2]
[394465401,1763608231981,-254.52711841,0.00016573,2]
[394465402,1763608231990,-300.0,0.00016573,2]
[394465403,1763608232002,-364.95016721,0.00016573,2]
[394465404,1763608232013,-647.43,0.00016654,2]
[394465405,1763608232023,-1000.0,0.00016654,2]
[394465406,1763608232033,-200.0,0.00016736,2]
[394465407,1763608232044,-1200.0,0.00016862,2]
[394465408,1763608232054,-500.0,0.00016863,2]
[394465409,1763608232064,-250.0,0.00017,2]
[394465410,1763608232074,-300.0,0.00017031,2]
[394465411,1763608232084,-300.0,0.00017031,2]
[394465412,1763608232093,-875.0591528,0.00017032,2]
[394465413,1763608232104,-324.9408472,0.00017032,2]
[394465414,1763608232114,-603.28,0.00017033,2]
[394465415,1763608232123,-383.32675447,0.00017046,2]
[394465416,1763608232134,-1280.95075832,0.00017046,2]
[394465418,1763608232145,-439.11248721,0.00017046,2]
[394465420,1763608232154,-150.0,0.00017109,2]
[394465422,1763608232163,-150.0,0.0001711,2]
[394465424,1763608232173,-478.61,0.00017205,2]
[394465426,1763608232182,-142.36746986,0.00017356,2]
[394465430,1763608232208,-25.63253014,0.00017356,2]
[394465432,1763608232217,-168.0,0.00017381,2]
[394465434,1763608232226,-149.87146946,0.00017415,2]
[394465436,1763608232238,-1455.12853054,0.00017415,2]
[394465438,1763608232247,-5295.88082421,0.00017415,2]
[394465440,1763608232258,-1198.11917579,0.00017415,2]
[394465442,1763608232266,-705.0,0.00017415,2]
[394465444,1763608232275,-117.56912336,0.00017429,2]
[394465446,1763608232287,-50.43087664,0.00017429,2]
[394465448,1763608232296,-168.0,0.00017458,2]
[394465450,1763608232305,-200.0,0.00017469,2]
[394465452,1763608232314,-168.0,0.00017486,2]
[394465454,1763608232324,-550.0,0.00017534,2]
[394465456,1763608232333,-1097.12,0.00017534,2]
[394465458,1763608232342,-550.51,0.00017534,2]
[394465460,1763608232352,-550.51,0.00017534,2]
[394465462,1763608232360,-248.80896262,0.00017534,2]
[394465465,1763608232372,-301.70103738,0.00017534,2]
[394465467,1763608232382,-550.51,0.00017534,2]
[394465469,1763608232391,-400.89930835,0.00017534,2]
[394465471,1763608232402,-148.18069165,0.00017534,2]
[394465473,1763608232411,-200.0,0.00017595,2]
[394465475,1763608232420,-200.0,0.00017595,2]
[394465476,1763608232429,-210.0,0.00017595,2]
[394465478,1763608232438,-208.723,0.00017595,2]
[394465480,1763608232447,-250.0,0.00017595,2]
[394465482,1763608232456,-218.8,0.00017595,2]
[394465484,1763608232465,-153.852,0.00017595,2]
[394465486,1763608232474,-150.0,0.00017595,2]
[394465488,1763608232485,-189.379,0.00017595,2]
[394465490,1763608232494,-162.536,0.00017595,2]
[394465492,1763608232503,-64.8026613,0.00017595,2]
[394465568,1763608237932,-145.6073387,0.00017595,2]
[394465569,1763608237941,-266.384,0.00017595,2]
[394465570,1763608237951,-222.262,0.00017595,2]
[394465571,1763608237964,-609.0,0.00017595,2]
[394465572,1763608237972,-744.3666613,0.00017595,2]
[394465573,1763608237989,-481.62479556,0.00017595,2]
[394465574,1763608238045,-2208.00854314,0.00017595,2]
[394465575,1763608238054,-1319.0,0.00017595,2]
[394465576,1763608238064,-575.0,0.00017595,2]
[394465577,1763608238073,-1600.0,0.00017595,2]
[394465578,1763608238082,-822.0,0.00017595,2]
[394465579,1763608238091,-1256.0,0.00017595,2]
[394465580,1763608238100,-794.0,0.00017595,2]
[394465582,1763608238110,-907.0,0.00017595,2]
[394465583,1763608238119,-1191.0,0.00017595,2]
[394465584,1763608238128,-166.66,0.00017595,2]
[394465585,1763608238137,-181.22,0.000176,2]
[394465586,1763608238146,-200.34095651,0.00017688,2]
[394465587,1763608238155,-355.17,0.00017734,2]